bitfinex/quotes_ETHUSD_20250322
["timestamp","ask_amount","ask_price","bid_price","bid_amount"]
[1742630416219,5.03197,1987.3,1986.8,5.536361]
[1742630416393,5.0323,1987.2,1986.8,5.536361]
[1742630417020,5.0323,1987.2,1986.9,5.03296]
[1742630417188,5.0323,1987.2,1986.8,5.536361]
[1742630417388,5.8563,1987.2,1986.9,0.5536361]
[1742630417615,5.8563,1987.2,1987.0,0.14409159]
[1742630417915,0.824,1987.2,1987.0,4.88309159]
[1742630420932,0.824,1987.4,1987.1,5.03236]
[1742630421135,0.824,1987.5,1987.2,5.03209]
[1742630421291,5.85548,1987.5,1987.2,6.18168379]
[1742630421693,5.03124,1987.6,1987.2,11.21372379]
[1742630422033,5.03124,1987.6,1987.2,6.18163379]
[1742630422322,0.824,1987.7,1987.4,5.03146]
[1742630422508,0.824,1987.7,1987.5,4.737]
[1742630422832,0.824,1987.7,1987.5,4.87878631]
[1742630423532,5.21071,1987.8,1987.5,4.87878631]
[1742630423822,6.04031,1987.8,1987.5,6.37296894]
[1742630424531,1.0096,1987.8,1987.5,6.37296894]
[1742630425030,1.0096,1987.8,1987.5,11.40429894]
[1742630425641,5.03119,1987.6,1987.5,0.14178631]
[1742630425837,5.86079,1987.6,1987.5,0.14178631]
[1742630426144,5.86155,1987.3,1987.2,4.738]
[1742630426523,5.86155,1987.3,1987.2,4.86946963]
[1742630428338,5.86155,1987.3,1987.2,0.13146963]
[1742630428538,10.81234605,1987.3,1987.2,0.13146963]
[1742630428705,5.03222,1987.2,1987.0,4.74]
[1742630429604,5.03222,1987.2,1987.1,0.11859824]
[1742630431078,5.03222,1987.2,1987.0,4.739]
[1742630431261,5.03222,1987.2,1987.1,0.11859824]
[1742630432678,7.33735291,1987.2,1987.1,0.11859824]
[1742630433039,5.0328,1987.0,1986.8,4.738]
[1742630433750,5.86256,1986.9,1986.8,4.738]
[1742630433953,5.86256,1986.9,1986.7,26.613]
[1742630434135,5.86256,1986.9,1986.7,31.35]
[1742630435381,5.03321,1986.8,1986.7,31.349]
[1742630435592,5.03321,1986.8,1986.7,26.613]
[1742630440187,5.03321,1986.8,1986.6,4.737]
[1742630443802,10.06661,1986.8,1986.6,4.737]
[1742630444001,5.03347,1986.7,1986.6,4.737]
[1742630444167,5.03321,1986.8,1986.6,4.737]
[1742630444369,5.03347,1986.7,1986.6,4.737]
[1742630445192,5.03347,1986.7,1986.5,4.727]
[1742630448699,5.02838381,1986.7,1986.5,4.727]
[1742630462244,0.8296,1986.9,1986.6,5.0335]
[1742630462435,8.03289,1987.0,1986.6,5.0335]
[1742630462638,13.06581,1987.0,1986.6,5.0335]
[1742630462849,5.03298,1986.9,1986.6,5.0335]
[1742630464052,5.03298,1986.9,1986.5,10.51719]
[1742630464358,5.03298,1986.9,1986.5,17.106114]
[1742630464818,5.03298,1986.9,1986.5,12.072224]
[1742630465017,5.03298,1986.9,1986.5,17.106044]
[1742630465745,5.03298,1986.9,1986.5,12.072224]
[1742630466353,5.03298,1986.9,1986.5,17.106034]
[1742630466541,5.03298,1986.9,1986.5,12.072224]
[1742630467455,5.03298,1986.9,1986.6,5.0337]
[1742630467961,5.03331,1986.8,1986.5,7.038424]
[1742630468122,5.03298,1986.9,1986.5,12.072244]
[1742630468327,5.03298,1986.9,1986.6,5.03372]
[1742630468527,5.03298,1986.9,1986.5,17.106014]
[1742630468850,5.03298,1986.9,1986.6,5.03368]
[1742630469052,8.03278,1987.0,1986.6,5.03368]
[1742630469234,5.03278,1987.0,1986.7,5.03345]
[1742630469564,5.03262,1987.1,1986.8,0.8218]
[1742630469768,3.55,1987.2,1986.8,5.85493]
[1742630469931,5.58235,1987.2,1986.8,5.85493]
[1742630470257,5.58233,1987.2,1986.8,5.85493]
[1742630470463,5.58233,1987.2,1986.8,11.473443]
[1742630470759,5.58233,1987.2,1986.8,6.440313]
[1742630470929,5.58232,1987.2,1986.8,6.440313]
[1742630471131,5.03232,1987.2,1986.8,6.440313]
[1742630471454,5.03232,1987.2,1986.9,4.707]
[1742630471762,8.82662,1987.3,1986.9,9.73987]
[1742630471934,5.03183,1987.4,1987.0,5.03262]
[1742630472261,5.03186,1987.4,1987.0,5.03262]
[1742630472466,8.03186,1987.4,1987.0,5.03262]
[1742630472764,8.03186,1987.4,1987.1,0.8218]
[1742630477088,3.86146905,1987.2,1986.8,0.8218]
[1742630477246,8.89433905,1987.0,1986.6,9.74172]
[1742630477589,8.89433905,1987.0,1986.6,4.708]
[1742630478083,5.03308,1986.9,1986.6,4.708]
[1742630479960,3.7946,1987.1,1986.7,5.03346]
[1742630480155,8.82724,1987.1,1986.7,5.03346]
[1742630480366,13.85993,1987.1,1986.7,5.03346]
[1742630480580,5.82724,1987.1,1986.7,5.83316]
[1742630481293,5.03272,1987.0,1986.7,0.7997]
[1742630484394,5.82707,1987.1,1986.7,5.83315]
[1742630485262,5.82707,1987.1,1986.7,7.488041]
[1742630485561,5.03285,1987.0,1986.7,2.454591]
[1742630485760,5.82707,1987.1,1986.7,7.487871]
[1742630487700,9.34205,1987.3,1986.9,5.03296]
[1742630487869,6.34205,1987.3,1986.9,5.03296]
[1742630488068,6.34205,1987.3,1986.9,5.536256]
[1742630489180,5.0318,1987.4,1987.0,0.8086]
[1742630489386,5.0318,1987.4,1987.0,5.84114]
[1742630489580,5.0318,1987.4,1987.0,10.54614]
[1742630492112,5.79135,1987.5,1987.0,5.5136]
[1742630492414,0.7599,1987.5,1987.2,5.0322]
[1742630493100,5.79135,1987.5,1987.1,10.616]
[1742630493402,5.79135,1987.5,1987.2,0.11640026]
[1742630493607,0.7599,1987.5,1987.2,5.14858026]
[1742630493813,0.7599,1987.5,1987.2,6.22180029]
[1742630494313,13.0626,1987.6,1987.2,6.22180029]
[1742630496502,5.03147,1987.5,1987.2,6.22180029]
[1742630499996,11.89270905,1987.6,1987.2,6.22180029]
[1742630500410,8.03124,1987.6,1987.3,0.7744]
[1742630500594,8.03124,1987.6,1987.4,0.11578691]
[1742630500781,8.03124,1987.6,1987.3,0.7744]
[1742630501115,8.03124,1987.6,1987.4,0.11578691]
[1742630501608,8.03124,1987.6,1987.5,0.11548027]
[1742630501812,8.03124,1987.6,1987.3,5.80634]
[1742630501982,8.03124,1987.6,1987.4,0.69642091]
[1742630504581,13.79153,1987.8,1987.4,5.72798091]
[1742630504788,5.03095,1987.7,1987.4,5.72798091]
[1742630505643,8.2107,1987.8,1987.4,10.42498091]
[1742630505851,8.2107,1987.8,1987.4,15.45652091]
[1742630506044,3.18,1987.8,1987.5,6.57696209]
[1742630506229,3.18,1987.8,1987.5,6.72021256]
[1742630506644,0.18,1987.8,1987.6,0.7744]
[1742630506806,0.18,1987.8,1987.6,5.94845722]
[1742630507853,5.21069,1987.8,1987.6,0.91726722]
[1742630508027,0.18,1987.8,1987.6,0.91726722]
[1742630508818,0.18,1987.8,1987.6,5.94843722]
[1742630509026,0.18,1987.8,1987.7,0.59484372]
[1742630509238,0.18,1987.8,1987.7,0.7364723]
[1742630511269,0.18,1987.8,1987.7,0.14162858]
[1742630511436,5.2107,1987.8,1987.6,0.7744]
[1742630511763,8.89249905,1987.7,1987.4,0.580634]
[1742630512555,5.03121,1987.6,1987.4,0.580634]
[1742630513555,8.89249905,1987.7,1987.4,0.580634]
[1742630514658,13.92361905,1987.7,1987.4,0.580634]
[1742630515156,13.92361905,1987.7,1987.5,0.14239504]
[1742630515859,8.89249905,1987.7,1987.5,0.14239504]
[1742630516362,13.92361905,1987.7,1987.5,0.14239504]
[1742630519472,5.03119,1987.6,1987.5,0.14239504]
[1742630519673,5.03119,1987.6,1987.2,5.03215]
[1742630519674,0.7658,1986.5,1986.1,1.03163325]
[1742630519845,0.55,1986.0,1985.8,4.22810648]
[1742630520052,5.03431,1986.4,1985.8,9.68647713]
[1742630520251,5.03434,1986.4,1985.9,5.03539]
[1742630520457,8.89580905,1986.4,1985.9,9.81735]
[1742630520769,8.89580905,1986.4,1985.9,14.85275]
[1742630521072,8.89574905,1986.4,1986.0,5.03505]
[1742630521236,8.89574905,1986.4,1986.0,6.016755]
[1742630522069,8.89574905,1986.4,1986.0,0.981705]
[1742630522269,5.03458,1986.3,1986.0,0.981705]
[1742630522451,5.03298175,1986.3,1986.0,0.981705]
[1742630522648,5.03298175,1986.3,1985.9,5.03548]
[1742630522861,5.03298175,1986.3,1986.0,4.78]
[1742630523063,8.89619905,1986.2,1986.1,4.779]
[1742630523971,5.03519,1986.1,1985.8,4.22810648]
[1742630524292,5.03519,1986.1,1985.9,4.781]
[1742630524475,8.89681905,1986.0,1985.9,4.781]
[1742630524976,13.93230905,1986.0,1985.8,4.22810648]
[1742630525151,5.0355,1985.9,1985.8,4.22810648]
[1742630525575,8.0355,1985.9,1985.8,4.22810648]
[1742630529991,8.8078,1985.9,1985.8,4.22810648]
[1742630530165,9.3578,1985.9,1985.8,4.22810648]
[1742630530584,8.8078,1985.9,1985.8,4.22810648]
[1742630531917,10.717585,1985.9,1985.8,4.22810648]
[1742630540407,3.0,1985.9,1985.8,4.22810648]
[1742630540621,3.0,1986.1,1985.8,5.03040648]
[1742630540786,8.03511,1986.1,1985.8,5.03040648]
[1742630541619,10.0698,1986.2,1985.8,14.83594648]
[1742630541787,10.06974,1986.2,1985.8,14.83594648]
[1742630542117,5.03486,1986.2,1985.8,16.82314013]
[1742630542604,10.0698,1986.2,1985.8,16.82314013]
[1742630542803,8.89693905,1986.0,1985.8,4.22810648]
[1742630543011,5.0355,1985.9,1985.8,4.22810648]
[1742630544018,5.8146,1985.9,1985.8,4.22810648]
[1742630544417,9.3646,1985.9,1985.8,4.22810648]
[1742630547329,8.8146,1985.9,1985.8,4.22810648]
[1742630547527,8.0355,1985.9,1985.8,4.22810648]
[1742630547687,5.03526,1986.0,1985.8,5.05250648]
[1742630547888,5.03516,1986.1,1985.8,5.47531713]
[1742630548415,5.03516,1986.1,1985.8,5.05250648]
[1742630549829,5.03526,1986.0,1985.8,9.83850648]
[1742630553639,5.03526,1986.0,1985.8,5.05250648]
[1742630553844,8.89696905,1985.9,1985.8,4.22810648]
[1742630554013,5.81436,1986.0,1985.8,4.22810648]
[1742630554214,0.96758291,1986.0,1985.8,4.22810648]
[1742630554422,5.0351,1986.1,1985.8,4.22810648]
[1742630554623,5.0351,1986.1,1985.9,0.8244]
[1742630554824,10.07033,1986.1,1985.9,0.8244]
[1742630555025,5.03524,1986.0,1985.9,0.8244]
[1742630555772,5.03524,1986.0,1985.8,4.22810648]
[1742630557970,5.0355,1985.9,1985.8,4.22810648]
[1742630559882,5.03504,1986.1,1985.8,4.22810648]
[1742630560455,5.0347,1986.3,1985.8,9.26360648]
[1742630560654,5.03476,1986.2,1985.8,15.30802713]
[1742630560950,8.03461,1986.3,1985.9,10.66079]
[1742630561149,5.03412,1986.5,1985.9,5.6253]
[1742630561354,6.0059589,1986.5,1986.0,5.03504]
[1742630561556,5.03426,1986.4,1986.0,5.03504]
[1742630561983,5.03426,1986.4,1985.9,10.66076]
[1742630562184,5.03469,1986.3,1985.9,5.6253]
[1742630562548,5.03476,1986.2,1985.9,5.6253]
[1742630563002,5.03476,1986.2,1985.9,5.5253]
[1742630563148,5.03469,1986.3,1985.9,5.5253]
[1742630563348,5.03469,1986.3,1985.9,10.56077]
[1742630566487,5.03469,1986.3,1985.9,12.64408971]
[1742630566692,5.03426,1986.4,1986.0,5.03523]
[1742630567293,5.03426,1986.4,1986.0,10.07037]
[1742630567460,5.03426,1986.4,1986.0,5.03514]
[1742630568199,5.03426,1986.4,1986.0,10.07027]
[1742630569714,5.03426,1986.4,1986.0,5.03513]
[1742630570014,5.03452,1986.3,1986.0,5.03513]
[1742630571311,5.0343,1986.4,1986.0,5.03513]
[1742630571473,5.03459,1986.3,1985.9,10.56078]
[1742630571978,5.03459,1986.3,1986.0,5.03521]
[1742630573009,3.0,1986.5,1986.0,5.03501]
[1742630573306,8.03404,1986.5,1986.2,0.8101]
[1742630573613,5.0338,1986.6,1986.2,10.87931]
[1742630573814,5.0338,1986.6,1986.3,5.03444]
[1742630574023,5.03349,1986.7,1986.3,10.06874]
[1742630574223,0.7564,1987.0,1986.5,5.03377]
[1742630574427,5.03281,1987.0,1986.6,10.06724]
[1742630574634,5.03195,1987.3,1986.7,4.837]
[1742630574783,5.0322,1987.2,1986.8,5.84307]
[1742630574984,3.0,1987.1,1986.8,5.84307]
[1742630575533,1.55962,1987.1,1986.0,27.60481817]
[1742630575825,8.89483905,1986.8,1986.4,5.84422]
[1742630577930,5.03372,1986.6,1986.2,10.87925]
[1742630578229,5.03372,1986.6,1986.2,5.84463]
[1742630578230,10.06765,1986.6,1986.2,5.84463]
[1742630578522,10.06765,1986.6,1986.2,4.963]
[1742630578523,5.03414,1986.5,1986.2,4.963]
[1742630578884,10.06832,1986.5,1986.2,4.963]
[1742630579089,5.03414,1986.5,1986.2,4.963]
[1742630579911,5.03366,1986.7,1986.2,4.963]
[1742630580089,3.0,1986.7,1986.3,0.8101]
[1742630580291,8.03347,1986.7,1986.3,5.84446]
[1742630582097,8.03347,1986.7,1986.3,10.79846]
[1742630583525,8.03347,1986.7,1986.3,5.84446]
[1742630583687,8.03347,1986.7,1986.3,10.79346]
[1742630584634,8.89528905,1986.6,1986.1,5.80503]
[1742630584935,5.82611,1986.5,1986.1,0.7701]
[1742630585114,5.03442,1986.4,1986.0,31.572]
[1742630585309,5.03458,1986.3,1986.0,31.572]
[1742630585500,5.03458,1986.3,1986.0,31.571]
[1742630585929,5.03485,1986.2,1986.0,26.621]
[1742630586129,11.07616,1986.3,1986.0,31.57]
[1742630587004,5.83449,1986.2,1986.0,31.57]
[1742630587197,5.83449,1986.2,1986.0,26.621]
[1742630587637,10.86944,1986.2,1986.0,26.621]
[1742630587933,5.83449,1986.2,1986.0,26.621]
[1742630590629,10.86934,1986.2,1986.0,26.621]
[1742630590845,5.83449,1986.2,1986.0,26.621]
[1742630591344,0.7997,1986.2,1986.0,26.621]
[1742630592156,5.83444,1986.2,1986.0,26.621]
[1742630594947,5.03474,1986.2,1986.0,26.621]
[1742630595749,6.142352,1986.2,1986.0,26.621]
[1742630595915,5.03499,1986.1,1986.0,26.621]
[1742630596341,5.83469,1986.1,1986.0,26.621]
[1742630598962,5.03539,1986.0,1985.8,4.22810648]
[1742630601623,10.07077,1986.0,1985.8,4.22810648]
[1742630601827,11.157807,1986.0,1985.8,4.22810648]
[1742630602245,6.122427,1986.0,1985.8,4.22810648]
[1742630603543,4.107612,1986.2,1985.9,5.85871]
[1742630603871,8.84739,1986.5,1986.0,5.03524]
[1742630604070,5.03433,1986.4,1986.0,5.03524]
[1742630604660,5.03449,1986.3,1986.0,5.03524]
[1742630605505,5.03449,1986.3,1985.9,5.85872]
[1742630607497,5.03449,1986.3,1985.9,10.89403]
[1742630608705,5.03433,1986.4,1986.0,5.03524]
[1742630609110,5.03399,1986.5,1986.1,4.9]
[1742630609305,5.03374,1986.6,1986.2,5.85792]
[1742630609910,5.03401,1986.5,1986.2,0.8233]
[1742630612505,5.03374,1986.6,1986.2,5.85803]
[1742630613381,5.03374,1986.6,1986.2,7.437314]
[1742630614270,10.06769,1986.6,1986.2,7.437314]
[1742630614604,5.03374,1986.6,1986.2,7.437154]
[1742630615202,5.03374,1986.6,1986.3,5.03448]
[1742630615707,5.03374,1986.6,1986.2,7.437154]
[1742630615912,5.03374,1986.6,1986.2,12.471714]
[1742630616317,5.03374,1986.6,1986.2,7.437144]
[1742630616616,5.03374,1986.6,1986.2,12.471754]
[1742630617027,5.03347,1986.7,1986.3,5.03436]
[1742630619133,10.06714,1986.7,1986.3,9.91236]
[1742630619532,5.03347,1986.7,1986.3,9.91236]
[1742630619905,5.03347,1986.7,1986.3,5.03436]
[1742630620095,10.06714,1986.7,1986.3,9.90936]
[1742630621342,5.03373,1986.6,1986.3,9.90936]
[1742630623035,5.03373,1986.6,1986.3,4.875]
[1742630624707,5.03373,1986.6,1986.3,9.90946]
[1742630625134,5.03347,1986.7,1986.3,14.94383]
[1742630625326,5.03347,1986.7,1986.3,9.90937]
[1742630625739,5.03347,1986.7,1986.4,5.03421]
[1742630628151,8.84668,1986.8,1986.4,5.03421]
[1742630628320,5.03328,1986.8,1986.5,0.7676]
[1742630628528,0.6603501,1986.8,1986.5,5.80155]
[1742630628824,8.8611,1986.9,1986.5,0.7676]
[1742630629037,3.0,1986.9,1986.6,5.03364]
[1742630629220,4.68956905,1987.1,1986.8,5.0331]
[1742630629436,5.03255,1987.1,1986.7,10.06662]
[1742630629745,5.03255,1987.1,1986.7,10.06664]
[1742630630043,5.03255,1987.1,1986.7,5.03329]
[1742630632177,5.03271,1987.0,1986.7,5.03329]
[1742630635984,5.03255,1987.1,1986.7,5.03329]
[1742630636143,5.86027,1987.3,1986.8,5.8386]
[1742630636347,5.86021,1987.3,1986.9,5.03287]
[1742630637385,10.89235,1987.3,1986.9,9.87587]
[1742630638081,5.86021,1987.3,1986.9,9.87587]
[1742630638285,8.03173,1987.4,1987.0,5.03259]
[1742630639263,13.06361,1987.4,1987.0,5.03259]
[1742630639581,5.032,1987.3,1986.9,11.444327]
[1742630641670,13.06355,1987.4,1987.0,5.03267]
[1742630641878,8.03173,1987.4,1987.0,5.03267]
[1742630642309,13.06363,1987.4,1987.0,5.03267]
[1742630642902,8.03173,1987.4,1987.0,5.03267]
[1742630643064,8.03173,1987.4,1987.1,0.8054]
[1742630644314,13.06362,1987.4,1987.0,6.6802897]
[1742630644514,5.03195,1987.3,1987.0,6.6802897]
[1742630645014,5.03195,1987.3,1987.0,1.6476997]
[1742630648190,5.03195,1987.3,1986.9,10.67823]
[1742630649301,5.03195,1987.3,1987.0,5.0327]
[1742630650300,8.03173,1987.4,1987.0,5.0327]
[1742630650754,8.03173,1987.4,1987.0,5.03254]
[1742630652635,13.06362,1987.4,1987.0,5.03254]
[1742630654540,5.03197,1987.3,1986.9,10.67834]
[1742630656154,5.03197,1987.3,1986.9,15.71114]
[1742630656854,8.03173,1987.4,1986.9,14.53965905]
[1742630657016,8.03173,1987.4,1987.0,5.03254]
[1742630657213,5.8069,1987.5,1987.1,5.03223]
[1742630657413,5.03143,1987.6,1987.2,5.85932]
[1742630658946,5.03156,1987.5,1987.2,0.8272]
[1742630659859,5.03156,1987.5,1987.2,5.85937]
[1742630660218,5.03156,1987.5,1987.2,6.94853]
[1742630660669,5.03127,1987.6,1987.2,6.9484]
[1742630661285,0.7706,1987.2,1986.8,0.98596943]
[1742630661494,5.0328,1987.0,1986.6,5.84115]
[1742630661848,5.03298,1986.9,1986.6,5.84115]
[1742630662547,5.03281,1987.0,1986.6,5.84115]
[1742630663685,5.03254,1987.1,1986.7,5.03342]
[1742630663872,5.80282,1987.2,1986.8,10.334442]
[1742630664572,10.83522,1987.2,1986.8,10.334442]
[1742630664774,5.03246,1987.1,1986.8,10.334442]
[1742630665145,5.03246,1987.1,1986.4,0.37087247]
[1742630665146,3.0,1986.3,1985.8,4.22810648]
[1742630665370,5.0355,1985.9,1985.8,4.22810648]
[1742630669081,0.7745,1986.2,1985.9,5.03539]
[1742630669289,10.06917,1986.3,1985.9,5.83759]
[1742630669582,5.03483,1986.2,1985.9,0.8022]
[1742630669881,10.06977,1986.2,1985.9,0.8022]
[1742630670081,5.03502,1986.1,1985.9,0.8022]
[1742630672520,5.0355,1985.9,1985.8,4.22810648]
[1742630672681,8.89696905,1985.9,1985.8,4.22810648]
[1742630673614,5.80975,1986.0,1985.8,4.22810648]
[1742630673820,5.0355,1985.9,1985.8,4.22810648]
[1742630677326,5.03507,1986.1,1985.8,4.22810648]
[1742630677704,5.03525,1986.0,1985.8,4.22810648]
[1742630678526,6.042282,1986.0,1985.8,4.22810648]
[1742630679124,5.0355,1985.9,1985.8,4.22810648]
[1742630679320,5.8496,1985.9,1985.8,4.22810648]
[1742630683732,5.0355,1985.9,1985.8,4.22810648]
[1742630690065,5.03525,1986.0,1985.8,5.05350648]
[1742630690277,5.03477,1986.2,1985.9,5.0354]
[1742630690432,5.03477,1986.2,1985.8,10.08904648]
[1742630693267,10.06974,1986.2,1985.8,10.08904648]
[1742630694358,5.03506,1986.1,1985.8,5.05350648]
[1742630694749,5.03506,1986.1,1985.8,10.08920648]
[1742630696465,5.03506,1986.1,1985.8,8.98710648]
[1742630701173,0.796,1986.3,1985.9,0.776]
[1742630701367,5.83062,1986.3,1985.9,0.776]
[1742630701573,10.86534,1986.3,1985.9,5.81128]
[1742630701871,5.03479,1986.2,1985.9,5.81128]
[1742630703677,5.03479,1986.2,1985.9,0.776]
[1742630706275,10.06977,1986.2,1985.9,0.776]
[1742630706480,5.03479,1986.2,1985.8,14.02269648]
[1742630706854,10.06973,1986.2,1985.8,14.02269648]
[1742630707751,5.03479,1986.2,1985.8,14.02269648]
[1742630707946,5.03479,1986.2,1985.8,23.70415313]
[1742630709183,10.06975,1986.2,1985.8,18.66856313]
[1742630709371,5.03479,1986.2,1985.8,18.66856313]
[1742630710459,5.03479,1986.2,1985.8,23.70420313]
[1742630712287,5.03479,1986.2,1985.8,18.66856313]
[1742630712587,5.03479,1986.2,1985.8,23.70415313]
[1742630712887,5.03479,1986.2,1985.8,18.66856313]
[1742630713291,5.03479,1986.2,1985.8,23.70416313]
[1742630715485,5.84361,1986.5,1986.0,0.7537]
[1742630715689,5.84365,1986.5,1986.1,5.03482]
[1742630716396,5.84365,1986.5,1986.1,10.06965]
[1742630717863,0.8096,1986.5,1986.2,5.03468]
[1742630719891,5.84359,1986.5,1986.2,5.03468]
[1742630720092,5.84359,1986.5,1986.2,9.77368]
[1742630720591,0.8096,1986.5,1986.2,9.77368]
[1742630723396,0.8096,1986.5,1986.2,9.7736]
[1742630727922,5.8436,1986.5,1986.2,9.7736]
[1742630729812,5.03424,1986.4,1986.0,31.65423]
[1742630730013,5.03424,1986.4,1986.1,4.728]
[1742630730014,10.0687,1986.4,1986.1,4.728]
[1742630730177,0.8229,1986.3,1986.1,4.728]
[1742630730908,9.71887905,1986.3,1986.1,4.728]
[1742630731100,9.71887905,1986.3,1986.0,31.65423]
[1742630731480,9.71887905,1986.3,1986.1,0.31340457]
[1742630745206,8.17454676,1986.3,1986.1,0.31340457]
[1742630746705,5.85741,1986.3,1986.1,0.31340457]
[1742630748730,0.8229,1986.3,1986.1,0.31340457]
[1742630750551,5.8574,1986.3,1986.1,0.31340457]
[1742630758052,5.8574,1986.3,1985.9,14.79784]
[1742630758351,5.8574,1986.3,1986.0,0.31580536]
[1742630761074,5.8574,1986.3,1986.0,5.35102536]
[1742630764969,5.8574,1986.3,1986.0,0.31580536]
[1742630765585,5.0345,1986.3,1986.0,0.31580536]
[1742630766983,5.0345,1986.3,1986.0,5.35098536]
[1742630770585,10.06919,1986.3,1986.0,0.31580536]
[1742630770782,5.0345,1986.3,1986.0,0.31580536]
[1742630772385,5.0345,1986.3,1986.0,5.35102536]
[1742630773586,5.0345,1986.3,1986.0,0.31580536]
[1742630774280,5.0345,1986.3,1986.0,5.35103536]
[1742630775290,5.03425,1986.4,1986.0,0.31580536]
[1742630775463,5.03425,1986.4,1986.1,5.03497]
[1742630775654,5.03425,1986.4,1986.2,0.3152291]
[1742630775853,5.80488,1986.5,1986.2,0.3152291]
[1742630776385,8.12201676,1986.5,1986.2,0.3152291]
[1742630779789,13.15616676,1986.5,1986.2,0.3152291]
[1742630779994,8.12201676,1986.5,1986.2,0.3152291]
[1742630780490,13.15616676,1986.5,1986.2,0.3152291]
[1742630780857,8.12201676,1986.5,1986.2,0.3152291]
[1742630781595,13.15619676,1986.5,1986.2,0.3152291]
[1742630782585,8.12201676,1986.5,1986.2,0.3152291]
[1742630783768,13.15616676,1986.5,1986.2,0.3152291]
[1742630784194,8.12201676,1986.5,1986.2,0.3152291]
[1742630784691,13.15616676,1986.5,1986.2,0.3152291]
[1742630784912,8.12201676,1986.5,1986.2,0.3152291]
[1742630785058,13.15617676,1986.5,1986.2,0.3152291]
[1742630785258,8.12201676,1986.5,1986.2,0.3152291]
[1742630785464,2.31713676,1986.4,1986.2,0.3152291]
[1742630786293,8.12201676,1986.5,1986.2,0.3152291]
[1742630786901,13.15621676,1986.5,1986.2,0.3152291]
[1742630787600,5.03425,1986.4,1986.2,0.3152291]
[1742630788914,8.13701676,1986.3,1986.2,0.3152291]
[1742630789289,5.03491,1986.2,1986.0,4.678]
[1742630789498,7.35204676,1986.2,1986.0,4.678]
[1742630791593,5.03491,1986.2,1986.0,4.678]
[1742630792919,5.03491,1986.2,1986.1,0.31531393]
[1742630793801,8.13701676,1986.3,1986.1,0.31531393]
[1742630795118,13.17171676,1986.3,1986.1,0.31531393]
[1742630795710,8.13701676,1986.3,1986.1,0.31531393]
[1742630795911,13.17169676,1986.3,1986.1,0.31531393]
[1742630796180,0.7854,1986.3,1986.1,5.35011393]
[1742630796386,5.03426,1986.4,1986.1,6.35292532]
[1742630796586,5.03426,1986.4,1986.1,7.17102532]
[1742630798232,12.38580676,1986.4,1986.1,1.31812532]
[1742630798385,7.35139676,1986.4,1986.1,0.31531393]
[1742630801313,12.38580676,1986.4,1986.1,0.31531393]
[1742630802540,7.35139676,1986.4,1986.1,0.31531393]
[1742630804038,5.03426,1986.4,1986.1,0.31531393]
[1742630804224,11.13632676,1986.6,1986.2,5.03464]
[1742630804744,2.31713676,1986.5,1986.3,0.31496131]
[1742630804910,2.31713676,1986.5,1986.2,5.03464]
[1742630805118,2.31713676,1986.5,1986.4,0.31469359]
[1742630805299,7.35110676,1986.5,1986.3,0.31496131]
[1742630805501,7.35110676,1986.5,1986.1,5.03483]
[1742630805737,10.35110676,1986.5,1986.4,0.31469359]
[1742630805943,10.35110676,1986.5,1986.1,5.03483]
[1742630806172,10.35110676,1986.5,1986.4,0.31469359]
[1742630806329,10.35110676,1986.5,1986.1,5.03483]
[1742630806532,10.35110676,1986.5,1986.4,0.31469359]
[1742630806736,10.35110676,1986.5,1986.1,5.03483]
[1742630807046,10.35110676,1986.5,1986.4,0.31469359]
[1742630807218,10.35110676,1986.5,1986.1,5.03483]
[1742630807427,10.35110676,1986.5,1986.4,0.31469359]
[1742630807629,10.35110676,1986.5,1986.1,5.03483]
[1742630807818,10.35110676,1986.5,1986.4,0.31469359]
[1742630808018,10.35110676,1986.5,1986.1,5.03483]
[1742630808314,10.35110676,1986.5,1986.4,0.31469359]
[1742630808856,5.31713676,1986.5,1986.4,0.31469359]
[1742630809052,3.0,1986.5,1986.4,0.31469359]
[1742630809555,3.0,1986.5,1986.1,10.06968]
[1742630809724,3.0,1986.5,1986.4,0.31469359]
[1742630810053,3.0,1986.5,1986.1,10.06968]
[1742630810232,3.0,1986.5,1986.4,0.31469359]
[1742630810432,3.0,1986.5,1986.1,5.03483]
[1742630810631,8.03397,1986.5,1986.4,0.31469359]
[1742630810815,8.03397,1986.5,1986.1,5.03483]
[1742630811021,10.35110676,1986.5,1986.4,0.31469359]
[1742630811326,10.35110676,1986.5,1986.1,5.03483]
[1742630811548,10.35110676,1986.5,1986.4,0.31469359]
[1742630811857,10.35110676,1986.5,1986.1,5.03483]
[1742630812055,10.35110676,1986.5,1986.4,0.31469359]
[1742630812264,0.7809,1987.4,1986.8,5.033]
[1742630812557,0.18,1987.8,1987.1,7.34950676]
[1742630812558,5.81217,1987.6,1987.1,7.34950676]
[1742630812950,5.81217,1987.6,1987.2,0.31210561]
[1742630813145,0.7809,1987.6,1987.2,2.62924237]
[1742630813328,5.99168,1987.8,1987.3,12.03697676]
[1742630813519,7.32560668,1987.8,1987.3,12.03697676]
[1742630813864,7.32560668,1987.8,1987.4,0.31083922]
[1742630814236,3.9609,1987.8,1987.5,2.31713676]
[1742630814442,3.18,1987.8,1987.5,2.62770855]
[1742630814621,0.18,1987.8,1987.5,2.62770855]
[1742630815228,3.18,1987.8,1987.5,0.31057179]
[1742630815427,0.18,1987.8,1987.5,0.31057179]
[1742630815762,3.18,1987.8,1987.5,0.31057179]
[1742630816363,3.18,1987.8,1987.5,6.09398179]
[1742630816727,0.18,1987.8,1987.5,11.12526179]
[1742630816955,0.18,1987.8,1987.5,7.591885]
[1742630817575,0.18,1987.8,1987.7,3.85507031]
[1742630818024,0.18,1987.8,1987.7,4.16266998]
[1742630818451,0.18,1987.8,1987.7,13.88160998]